bitfinex/quotes_BTCUSD_20240605
["timestamp","ask_amount","ask_price","bid_price","bid_amount"]
[1717619595567,2.56738376,71244.0,71243.0,0.009493]
[1717619595777,2.66738376,71244.0,71243.0,0.009493]
[1717619596204,2.94810876,71244.0,71243.0,0.009493]
[1717619596845,3.07386598,71244.0,71243.0,0.009493]
[1717619597293,2.94810876,71244.0,71243.0,0.009493]
[1717619597505,2.94410876,71244.0,71243.0,0.009493]
[1717619597706,2.95326359,71244.0,71243.0,0.009493]
[1717619597909,2.95810876,71244.0,71243.0,0.009493]
[1717619598110,2.94410876,71244.0,71243.0,0.009493]
[1717619598320,2.95410876,71244.0,71243.0,0.009493]
[1717619598529,2.96810876,71244.0,71243.0,0.009493]
[1717619598747,2.95810876,71244.0,71243.0,0.009493]
[1717619599199,2.97210876,71244.0,71243.0,0.009493]
[1717619599416,2.96726359,71244.0,71243.0,0.009493]
[1717619599633,2.97210876,71244.0,71243.0,0.009493]
[1717619601238,2.98932812,71244.0,71243.0,0.009493]
[1717619601875,2.98448295,71244.0,71243.0,0.009493]
[1717619602328,2.70375795,71244.0,71243.0,0.009493]
[1717619602542,2.35513295,71244.0,71243.0,0.009493]
[1717619602755,2.52772609,71244.0,71243.0,0.009493]
[1717619602975,2.50678902,71244.0,71243.0,0.009493]
[1717619603192,2.17500204,71244.0,71243.0,0.009493]
[1717619604737,2.11218492,71244.0,71243.0,0.009493]
[1717619605013,2.17500204,71244.0,71243.0,0.009493]
[1717619605631,2.11218492,71244.0,71243.0,0.009493]
[1717619606299,2.17499134,71244.0,71243.0,0.009493]
[1717619607153,2.11218492,71244.0,71243.0,0.009493]
[1717619609220,2.17499134,71244.0,71243.0,0.009493]
[1717619610025,1.84049134,71244.0,71243.0,0.009493]
[1717619610229,1.58290998,71244.0,71243.0,0.20464783]
[1717619610454,1.65080998,71244.0,71243.0,0.2148166]
[1717619610666,1.58800356,71244.0,71243.0,0.20464783]
[1717619611186,1.57400356,71244.0,71243.0,0.20464783]
[1717619611417,1.56000356,71244.0,71243.0,0.2148166]
[1717619611649,1.58800356,71244.0,71243.0,0.2148166]
[1717619612049,1.56000356,71244.0,71243.0,0.2148166]
[1717619612261,1.57400356,71244.0,71243.0,0.2148166]
[1717619612482,3.72436556,71244.0,71243.0,0.009493]
[1717619615079,3.95736556,71244.0,71243.0,0.009493]
[1717619615339,4.02017198,71244.0,71243.0,0.009493]
[1717619615549,3.95736556,71244.0,71243.0,0.009493]
[1717619615761,4.02017198,71244.0,71243.0,0.009493]
[1717619616191,3.95736556,71244.0,71243.0,0.009493]
[1717619616640,3.93137453,71244.0,71243.0,0.009493]
[1717619616850,3.99927453,71244.0,71243.0,0.009493]
[1717619617057,3.95736556,71244.0,71243.0,0.009493]
[1717619618038,3.99927576,71244.0,71243.0,0.009493]
[1717619618662,3.95736556,71244.0,71243.0,0.009493]
[1717619619653,3.9992795,71244.0,71243.0,0.009493]
[1717619620529,3.95736556,71244.0,71243.0,0.009493]
[1717619620734,3.99904284,71244.0,71243.0,0.009493]
[1717619621617,3.9571289,71244.0,71243.0,0.009493]
[1717619622295,3.99904459,71244.0,71243.0,0.009493]
[1717619622442,3.9571289,71244.0,71243.0,0.009493]
[1717619622677,3.9990452,71244.0,71243.0,0.009493]
[1717619623311,3.8440452,71244.0,71243.0,0.009493]
[1717619623517,3.8021289,71244.0,71243.0,0.009493]
[1717619625167,3.8650098,71244.0,71243.0,0.009493]
[1717619627352,3.7971098,71244.0,71243.0,0.009493]
[1717619627559,3.8650098,71244.0,71243.0,0.009493]
[1717619628018,4.11299189,71244.0,71243.0,0.009493]
[1717619628639,4.03499189,71244.0,71243.0,0.009493]
[1717619629580,4.11883309,71244.0,71243.0,0.009493]
[1717619630276,4.03499189,71244.0,71243.0,0.009493]
[1717619630935,3.96709189,71244.0,71243.0,0.009493]
[1717619631140,3.7241289,71244.0,71243.0,0.009493]
[1717619631353,4.11891362,71244.0,71243.0,0.009493]
[1717619631571,4.03497922,71244.0,71243.0,0.009493]
[1717619632003,4.03497922,71244.0,71243.0,0.20464783]
[1717619632213,4.03497597,71244.0,71243.0,0.20464783]
[1717619632418,4.03497597,71244.0,71243.0,0.2148166]
[1717619633265,4.13992698,71244.0,71243.0,0.2148166]
[1717619633470,3.93166498,71244.0,71243.0,0.3706166]
[1717619633678,3.43445522,71244.0,71243.0,0.5458166]
[1717619633892,3.37144797,71244.0,71243.0,0.5458166]
[1717619634107,3.41345122,71244.0,71243.0,0.5458166]
[1717619634335,3.41345622,71244.0,71243.0,0.5458166]
[1717619635382,3.37144797,71244.0,71243.0,0.5458166]
[1717619637197,3.41346442,71244.0,71243.0,0.5458166]
[1717619639306,3.41346066,71244.0,71243.0,0.5458166]
[1717619639537,3.37144797,71244.0,71243.0,0.5458166]
[1717619641025,3.37144797,71244.0,71243.0,0.79520622]
[1717619641248,3.37079802,71244.0,71243.0,0.86310622]
[1717619642104,3.34679802,71244.0,71243.0,0.86310622]
[1717619642572,3.34779802,71244.0,71243.0,0.86810622]
[1717619642770,3.34779802,71244.0,71243.0,0.86710622]
[1717619643214,3.34779802,71244.0,71243.0,0.86810622]
[1717619643436,3.34779802,71244.0,71243.0,0.86710622]
[1717619643868,3.34779802,71244.0,71243.0,0.86810622]
[1717619644082,3.34679802,71244.0,71243.0,0.86410622]
[1717619644528,3.34779802,71244.0,71243.0,0.80120622]
[1717619644742,3.34779802,71244.0,71243.0,0.86910622]
[1717619644950,3.34679802,71244.0,71243.0,0.86410622]
[1717619645163,3.34679802,71244.0,71243.0,0.86310622]
[1717619645366,3.34779802,71244.0,71243.0,0.86810622]
[1717619645579,3.34779802,71244.0,71243.0,0.86910622]
[1717619646281,3.34779802,71244.0,71243.0,1.14983522]
[1717619646693,3.34779802,71244.0,71243.0,1.08193522]
[1717619646896,3.34779802,71244.0,71243.0,1.14983522]
[1717619648153,3.34779802,71244.0,71243.0,1.13983522]
[1717619648396,3.34779802,71244.0,71243.0,1.14983522]
[1717619651203,3.34779802,71244.0,71243.0,1.13983522]
[1717619651405,3.34779802,71244.0,71243.0,1.14983522]
[1717619652235,3.34779802,71244.0,71243.0,1.07193522]
[1717619652445,3.34779802,71244.0,71243.0,1.13983522]
[1717619652936,3.34779802,71244.0,71243.0,1.08193522]
[1717619653174,3.34779802,71244.0,71243.0,1.14983522]
[1717619654989,3.34779802,71244.0,71243.0,1.13983522]
[1717619655397,3.34779802,71244.0,71243.0,1.14983522]
[1717619662371,3.34779802,71244.0,71243.0,1.07193522]
[1717619665018,3.34779802,71244.0,71243.0,0.35488262]
[1717619665458,3.34779802,71244.0,71243.0,0.55003745]
[1717619665657,3.34779802,71244.0,71243.0,0.35488262]
[1717619665859,3.34779802,71244.0,71243.0,0.55003745]
[1717619667942,3.34779802,71244.0,71243.0,0.56020622]
[1717619670249,3.38976025,71244.0,71243.0,0.56020622]
[1717619671276,3.38976025,71244.0,71243.0,0.35488262]
[1717619671716,3.38976025,71244.0,71243.0,0.86973446]
[1717619671842,3.34779802,71244.0,71243.0,0.86973446]
[1717619672258,3.34779802,71244.0,71243.0,0.79750622]
[1717619674968,3.34779802,71244.0,71243.0,0.56020622]
[1717619679634,3.34779802,71244.0,71243.0,0.84093522]
[1717619679889,3.34779802,71244.0,71243.0,1.15963522]
[1717619682297,3.34779802,71244.0,71243.0,1.44036422]
[1717619683348,3.34679802,71244.0,71243.0,1.43536422]
[1717619683483,3.34679802,71244.0,71243.0,1.43436422]
[1717619683740,3.34779802,71244.0,71243.0,1.44136422]
[1717619684357,3.34879802,71244.0,71243.0,1.44336422]
[1717619684785,3.34779802,71244.0,71243.0,1.43636422]
[1717619685158,3.34879802,71244.0,71243.0,1.44336422]
[1717619686736,3.34879802,71244.0,71243.0,1.37546422]
[1717619686942,3.34879802,71244.0,71243.0,1.44336422]
[1717619692635,3.34875202,71244.0,71243.0,1.44336422]
[1717619701698,3.34875202,71244.0,71243.0,1.37546422]
[1717619702085,3.34875202,71244.0,71243.0,1.44336422]
[1717619703183,3.34875202,71244.0,71243.0,1.09473522]
[1717619703564,3.34875202,71244.0,71243.0,0.91183522]
[1717619703819,3.34875202,71244.0,71243.0,0.84393522]
[1717619704032,3.34875202,71244.0,71243.0,0.56320622]
[1717619704033,3.42735202,71244.0,71243.0,0.56320622]
[1717619704441,3.59145202,71244.0,71243.0,0.56320622]
[1717619706115,3.34875202,71244.0,71243.0,0.85393522]
[1717619708400,3.34875202,71244.0,71243.0,0.84393522]
[1717619708610,3.34875202,71244.0,71243.0,0.85393522]
[1717619708819,3.34875202,71244.0,71243.0,0.56320622]
[1717619709042,3.34875202,71244.0,71243.0,0.63110622]
[1717619711679,3.34875202,71244.0,71243.0,0.56320622]
[1717619711899,3.34875202,71244.0,71243.0,0.63110622]
[1717619712103,3.34875202,71244.0,71243.0,0.56320622]
[1717619712305,3.34875202,71244.0,71243.0,0.63110622]
[1717619714101,3.34875202,71244.0,71243.0,0.92183522]
[1717619714485,3.34875202,71244.0,71243.0,0.85393522]
[1717619714689,3.34875202,71244.0,71243.0,0.92183522]
[1717619715094,3.34875202,71244.0,71243.0,0.85393522]
[1717619715336,3.34875202,71244.0,71243.0,0.92183522]
[1717619715554,3.34875202,71244.0,71243.0,0.56320622]
[1717619715768,3.34875202,71244.0,71243.0,0.63110622]
[1717619717850,3.34875202,71244.0,71243.0,0.91183522]
[1717619718047,3.34875202,71244.0,71243.0,0.92183522]
[1717619718469,3.34875202,71244.0,71243.0,0.91183522]
[1717619718668,3.34875202,71244.0,71243.0,0.92183522]
[1717619718874,3.34875202,71244.0,71243.0,0.91183522]
[1717619720054,3.34875202,71244.0,71243.0,0.63110622]
[1717619720227,3.34875202,71244.0,71243.0,0.92183522]
[1717619721225,3.34875202,71244.0,71243.0,0.91183522]
[1717619722483,3.34875202,71244.0,71243.0,0.84393522]
[1717619722715,3.34875202,71244.0,71243.0,0.91183522]
[1717619723144,3.34875202,71244.0,71243.0,0.84393522]
[1717619723354,3.34875202,71244.0,71243.0,0.91183522]
[1717619723571,3.34875202,71244.0,71243.0,0.84393522]
[1717619723787,3.34875202,71244.0,71243.0,0.91183522]
[1717619723989,3.34875202,71244.0,71243.0,0.84393522]
[1717619724634,3.34875202,71244.0,71243.0,0.91183522]
[1717619725449,3.34875202,71244.0,71243.0,0.63110622]
[1717619725875,3.34875202,71244.0,71243.0,0.56320622]
[1717619726079,3.34875202,71244.0,71243.0,0.63110622]
[1717619728293,3.34875202,71244.0,71243.0,0.56320622]
[1717619728503,3.34875202,71244.0,71243.0,0.63110622]
[1717619730231,3.34875202,71244.0,71243.0,0.91183522]
[1717619730445,3.34875202,71244.0,71243.0,0.63110622]
[1717619730660,3.34875202,71244.0,71243.0,0.56320622]
[1717619730876,3.34875202,71244.0,71243.0,0.63110622]
[1717619732148,3.34875202,71244.0,71243.0,0.56320622]
[1717619732366,3.34875202,71244.0,71243.0,0.63110622]
[1717619732583,3.34875202,71244.0,71243.0,0.56320622]
[1717619732789,3.34875202,71244.0,71243.0,0.63110622]
[1717619733642,3.34875202,71244.0,71243.0,0.42578262]
[1717619733882,3.34875202,71244.0,71243.0,0.63110622]
[1717619734552,3.34875202,71244.0,71243.0,0.56320622]
[1717619734736,3.34875202,71244.0,71243.0,0.63110622]
[1717619739108,3.34875202,71244.0,71243.0,0.56320622]
[1717619752186,3.39072559,71244.0,71243.0,0.56320622]
[1717619752383,3.34875202,71244.0,71243.0,0.56320622]
[1717619754143,3.34875202,71244.0,71243.0,0.85393522]
[1717619754351,3.34875202,71244.0,71243.0,0.84393522]
[1717619754551,3.34875202,71244.0,71243.0,0.85393522]
[1717619755600,3.34875202,71244.0,71243.0,0.57320622]
[1717619756451,3.34875202,71244.0,71243.0,0.80640622]
[1717619756667,3.34875202,71244.0,71243.0,1.21146422]
[1717619756875,3.34875202,71244.0,71243.0,1.36786422]
[1717619758150,3.34875202,71244.0,71243.0,1.71228315]
[1717619758398,3.34875202,71244.0,71243.0,1.81228315]
[1717619758599,3.34875202,71244.0,71243.0,1.61228315]
[1717619758952,3.34875202,71244.0,71243.0,1.81228315]
[1717619759585,3.34875202,71244.0,71243.0,1.61228315]
[1717619759790,3.34875202,71244.0,71243.0,1.68018315]
[1717619761190,3.34875202,71244.0,71243.0,1.88018315]
[1717619763434,3.34875202,71244.0,71243.0,1.68018315]
[1717619763639,3.34875202,71244.0,71243.0,1.61228315]
[1717619763843,3.34875202,71244.0,71243.0,1.68018315]
[1717619764265,3.34875202,71244.0,71243.0,1.88018315]
[1717619764813,3.34875202,71244.0,71243.0,1.68018315]
[1717619768548,3.34875202,71244.0,71243.0,1.61228315]
[1717619768958,3.34875202,71244.0,71243.0,1.68018315]
[1717619769171,3.34875202,71244.0,71243.0,1.44698315]
[1717619769372,3.34875202,71244.0,71243.0,1.52488315]
[1717619769689,3.34875202,71244.0,71243.0,1.68798315]
[1717619770221,3.34875202,71244.0,71243.0,1.70474667]
[1717619773251,3.34875202,71244.0,71243.0,1.46374667]
[1717619780608,3.34875202,71244.0,71243.0,1.70144667]
[1717619785204,3.34875202,71244.0,71243.0,1.98217567]
[1717619791041,3.34875202,71244.0,71243.0,2.18217567]
[1717619792348,3.34875202,71244.0,71243.0,1.59005674]
[1717619792552,3.42795202,71244.0,71243.0,1.58329322]
[1717619792766,3.34875202,71244.0,71243.0,1.58329322]
[1717619800383,3.34875202,71244.0,71243.0,1.72771215]
[1717619800593,3.34875202,71244.0,71243.0,1.96941215]
[1717619801888,3.34875202,71244.0,71243.0,2.16941215]
[1717619802087,3.34875202,71244.0,71243.0,2.21144398]
[1717619802767,3.34875202,71244.0,71243.0,2.16941215]
[1717619804585,3.34875202,71244.0,71243.0,2.01144398]
[1717619804794,3.34875202,71244.0,71243.0,2.21144398]
[1717619806296,3.34875202,71244.0,71243.0,2.21145426]
[1717619807555,3.34875202,71244.0,71243.0,2.16941215]
[1717619807771,3.34875202,71244.0,71243.0,2.01145272]
[1717619807983,3.34875202,71244.0,71243.0,1.96941215]
[1717619808199,3.34875202,71244.0,71243.0,2.011453]
[1717619808418,3.34875202,71244.0,71243.0,1.96941215]
[1717619809682,3.34875202,71244.0,71243.0,2.16941215]
[1717619811175,3.34875202,71244.0,71243.0,1.64981215]
[1717619811383,3.59125202,71244.0,71243.0,1.12466422]
[1717619811598,3.59125202,71244.0,71243.0,0.84393522]
[1717619811802,3.59125202,71244.0,71243.0,0.56320622]
[1717619812224,3.59125202,71244.0,71243.0,0.55303745]
[1717619813994,3.58925202,71244.0,71243.0,0.54403745]
[1717619814660,3.58925202,71244.0,71243.0,0.54703745]
[1717619814875,3.58925202,71244.0,71243.0,0.55003745]
[1717619815503,3.58925202,71244.0,71243.0,0.55720622]
[1717619815712,3.58925202,71244.0,71243.0,0.55920622]
[1717619817613,3.58925202,71244.0,71243.0,0.54903745]
[1717619817825,3.58925202,71244.0,71243.0,0.55920622]
[1717619818250,3.58925202,71244.0,71243.0,0.54903745]
[1717619818444,3.58925202,71244.0,71243.0,0.55920622]
[1717619819325,3.58925202,71244.0,71243.0,0.54903745]
[1717619820465,3.58925202,71244.0,71243.0,0.55920622]
[1717619821144,3.58925202,71244.0,71243.0,0.55420622]
[1717619821577,3.59025202,71244.0,71243.0,0.55420622]
[1717619821768,3.59025202,71244.0,71243.0,0.55520622]
[1717619823983,3.34775202,71244.0,71243.0,0.55520622]
[1717619827393,3.34775202,71244.0,71243.0,0.62310622]
[1717619829659,3.34775202,71244.0,71243.0,0.63310622]
[1717619830484,3.34775202,71244.0,71243.0,0.55520622]
[1717619830698,3.34775202,71244.0,71243.0,0.62310622]
[1717619832988,3.34775202,71244.0,71243.0,0.63310622]
[1717619837865,3.34775202,71244.0,71243.0,0.91383522]
[1717619838067,3.34775202,71244.0,71243.0,0.90383522]
[1717619839661,3.34775202,71244.0,71243.0,0.91383522]
[1717619841044,3.34775202,71244.0,71243.0,0.90383522]
[1717619841245,3.34775202,71244.0,71243.0,0.99473522]
[1717619841791,3.34775202,71244.0,71243.0,0.83593522]
[1717619842011,3.34775202,71244.0,71243.0,0.90383522]
[1717619844799,3.34775202,71244.0,71243.0,0.83593522]
[1717619845664,3.34775202,71244.0,71243.0,0.90383522]
[1717619846817,3.34775202,71244.0,71243.0,0.89666022]
[1717619847291,3.34775202,71244.0,71243.0,0.89661422]
[1717619852816,3.34775202,71244.0,71243.0,0.82871422]
[1717619859565,3.34775202,71244.0,71243.0,1.07281422]
[1717619863061,3.34775202,71244.0,71243.0,0.91031422]
[1717619867750,3.34775202,71244.0,71243.0,0.82871422]
[1717619878068,3.34775202,71244.0,71243.0,0.90471422]
[1717619878280,3.34775202,71244.0,71243.0,1.06241422]
[1717619878483,3.34775202,71244.0,71243.0,1.07241422]
[1717619879744,3.34775202,71244.0,71243.0,1.06241422]
[1717619883677,3.34775202,71244.0,71243.0,1.07241422]
[1717619883893,3.34775202,71244.0,71243.0,1.49756215]
[1717619884145,3.34775202,71244.0,71243.0,1.21683315]
[1717619884355,3.34775202,71244.0,71243.0,1.28473315]
[1717619884581,3.34775202,71244.0,71243.0,1.27473315]
[1717619884791,3.34675202,71244.0,71243.0,1.28473315]
[1717619885236,3.34675202,71244.0,71243.0,0.83471422]
[1717619885237,3.34775202,71244.0,71243.0,0.83471422]
[1717619886093,3.34775202,71244.0,71243.0,0.90261422]
[1717619886819,3.34775202,71244.0,71243.0,0.89961422]
[1717619887034,3.34775202,71244.0,71243.0,0.83471422]
[1717619887455,3.34675202,71244.0,71243.0,0.83171422]
[1717619887887,3.34675202,71244.0,71243.0,0.83371422]
[1717619891970,3.34675202,71244.0,71243.0,0.84371422]
[1717619892183,3.34675202,71244.0,71243.0,0.83371422]
[1717619892588,3.34675202,71244.0,71243.0,0.90161422]
[1717619895439,3.34675202,71244.0,71243.0,0.83371422]
[1717619895646,3.34675202,71244.0,71243.0,0.90161422]
[1717619912727,3.34675202,71244.0,71243.0,1.19234322]
[1717619914798,3.34675202,71244.0,71243.0,1.18234322]
[1717619925608,3.34675202,71244.0,71243.0,0.90161422]
[1717619944378,3.34675202,71244.0,71243.0,0.98331422]
[1717619948278,3.34675202,71244.0,71243.0,0.90161422]
[1717619948491,3.49117095,71244.0,71243.0,0.008272]
[1717619948703,3.83678807,71244.0,71243.0,0.008272]
[1717619948925,3.72687095,71244.0,71243.0,0.008272]
[1717619949137,4.12171434,71244.0,71243.0,0.008272]
[1717619949552,3.78987969,71244.0,71243.0,0.006272]
[1717619949734,4.03768927,71244.0,71243.0,0.002272]
[1717619950012,4.03768927,71244.0,71243.0,0.104272]
[1717619950013,3.74157288,71244.0,71243.0,0.104272]
[1717619950226,3.42805202,71244.0,71243.0,0.104272]
[1717619950436,3.42805202,71244.0,71243.0,0.29742683]
[1717619950647,3.47104314,71244.0,71243.0,0.30442683]
[1717619950853,3.47104314,71244.0,71243.0,0.109272]
[1717619951058,3.47104314,71244.0,71243.0,0.30442683]
[1717619951268,3.42905202,71244.0,71243.0,0.109272]
[1717619951475,3.42905202,71244.0,71243.0,0.30442683]
[1717619951681,3.42905202,71244.0,71243.0,0.109272]
[1717619952301,3.43005202,71244.0,71243.0,0.116272]
[1717619954363,3.43005202,71244.0,71243.0,0.31142683]
[1717619954574,3.43005202,71244.0,71243.0,0.3215956]
[1717619954787,3.34875202,71244.0,71243.0,0.3215956]
[1717619955414,3.34875202,71244.0,71243.0,0.31142683]
[1717619957507,3.34875202,71244.0,71243.0,0.3215956]
[1717619960442,3.34875202,71244.0,71243.0,0.31142683]
[1717619964078,3.34875202,71244.0,71243.0,0.3215956]
[1717619969429,3.34875202,71244.0,71243.0,0.4619596]
[1717619972253,3.34875202,71244.0,71243.0,0.45179083]
[1717619972479,3.34875202,71244.0,71243.0,0.4619596]
[1717619972678,3.34875202,71244.0,71243.0,0.4597278]
[1717619977789,3.34875202,71244.0,71243.0,0.44955903]
[1717619978013,3.34875202,71244.0,71243.0,0.4597278]
[1717619991641,3.34875202,71244.0,71243.0,0.44955903]
[1717619992038,3.49317095,71244.0,71243.0,0.0140402]
[1717619992250,3.82687095,71244.0,71243.0,0.0140402]
[1717619992799,3.88978613,71244.0,71243.0,0.0140402]
[1717619993188,4.13769376,71244.0,71243.0,0.0140402]
[1717619993430,4.22158067,71244.0,71243.0,0.0140402]
[1717619993819,4.13769376,71244.0,71243.0,0.0140402]
[1717619994306,4.38290093,71244.0,71243.0,0.0140402]
[1717619994488,4.37805576,71244.0,71243.0,0.0140402]
[1717619994697,4.37705576,71244.0,71243.0,0.0070402]
[1717619995116,4.37605576,71244.0,71243.0,4.02e-05]
[1717619995356,4.37605576,71244.0,71243.0,0.0010402]
[1717619995536,4.38090093,71244.0,71243.0,0.0010402]
[1717619995747,4.37605576,71244.0,71243.0,4.02e-05]
[1717619995956,4.37705576,71244.0,71243.0,4.02e-05]
[1717619996965,4.37907724,71244.0,71243.0,4.02e-05]
[1717619997171,4.48390382,71244.0,71243.0,4.02e-05]
[1717619997323,4.48190382,71244.0,71243.0,4.02e-05]
[1717619997719,4.49190382,71244.0,71243.0,0.0010402]
[1717619998135,4.38707724,71244.0,71243.0,0.0010402]
[1717619998337,4.39707724,71244.0,71243.0,0.0020402]
[1717620000496,4.40192241,71244.0,71243.0,0.0020402]
[1717620000710,4.32917724,71244.0,71243.0,0.0020402]
[1717620000922,4.39707724,71244.0,71243.0,0.0020402]
[1717620001140,4.50190382,71244.0,71243.0,0.0020402]
[1717620001366,4.39707724,71244.0,71243.0,0.0020402]
[1717620001562,4.4141547,71244.0,71243.0,0.0020402]
[1717620003146,4.4979214,71244.0,71243.0,0.0020402]
[1717620003375,4.50276657,71244.0,71243.0,0.0020402]
[1717620003606,4.4141547,71244.0,71243.0,0.0020402]
[1717620003812,4.41899987,71244.0,71243.0,0.0020402]
[1717620004022,4.4141547,71244.0,71243.0,0.0020402]
[1717620004230,4.49791948,71244.0,71243.0,0.0020402]
[1717620005248,4.50276465,71244.0,71243.0,0.0020402]
[1717620005462,4.41899987,71244.0,71243.0,0.0020402]
[1717620006525,4.5027227,71244.0,71243.0,0.0020402]
[1717620008215,4.41899987,71244.0,71243.0,0.0020402]
[1717620008439,4.42399987,71244.0,71243.0,0.0020402]
[1717620010203,4.42399987,71244.0,71243.0,0.0010402]
[1717620010204,4.4967227,71244.0,71243.0,0.0010402]
[1717620011039,4.5107227,71244.0,71243.0,0.0010402]
[1717620011425,4.5007227,71244.0,71243.0,4.02e-05]
[1717620012380,4.5147227,71244.0,71243.0,4.02e-05]
[1717620012816,4.51469993,71244.0,71243.0,4.02e-05]
[1717620014254,4.44195476,71244.0,71243.0,4.02e-05]
[1717620014463,4.50985476,71244.0,71243.0,4.02e-05]
[1717620016089,4.51469993,71244.0,71243.0,4.02e-05]
[1717620017709,4.50985476,71244.0,71243.0,4.02e-05]
[1717620020185,4.51469993,71244.0,71243.0,4.02e-05]
[1717620020411,4.43101018,71244.0,71243.0,4.02e-05]
[1717620021457,4.81634737,71244.0,71243.0,4.02e-05]
[1717620021888,4.40088058,71244.0,71243.0,4.02e-05]
[1717620022067,4.81637088,71244.0,71243.0,4.02e-05]
[1717620022476,5.28596011,71244.0,71243.0,4.02e-05]
[1717620022906,5.57700252,71244.0,71243.0,4.02e-05]
[1717620023108,5.94512657,71244.0,71243.0,4.02e-05]
[1717620023311,5.85314916,71244.0,71243.0,4.02e-05]
[1717620023727,5.86714916,71244.0,71243.0,4.02e-05]
[1717620023928,6.14787416,71244.0,71243.0,4.02e-05]
[1717620024440,6.32387416,71244.0,71243.0,4.02e-05]
[1717620024749,6.33787416,71244.0,71243.0,4.02e-05]
[1717620024929,6.48299203,71244.0,71243.0,4.02e-05]
[1717620025786,6.46899203,71244.0,71243.0,4.02e-05]
[1717620026097,6.48299203,71244.0,71243.0,4.02e-05]
[1717620026304,6.46899203,71244.0,71243.0,4.02e-05]
[1717620026516,6.48299203,71244.0,71243.0,4.02e-05]
[1717620040544,6.33287416,71244.0,71243.0,4.02e-05]
[1717620040891,6.32787416,71244.0,71243.0,4.02e-05]
[1717620041516,6.01801654,71244.0,71243.0,4.02e-05]
[1717620041925,6.45328405,71244.0,71243.0,4.02e-05]
[1717620042531,6.01801654,71244.0,71243.0,4.02e-05]
[1717620044221,6.45328234,71244.0,71243.0,4.02e-05]
[1717620044474,6.59840021,71244.0,71243.0,4.02e-05]
[1717620044879,6.38538234,71244.0,71243.0,4.02e-05]
[1717620045056,6.01801654,71244.0,71243.0,4.02e-05]
[1717620045276,6.45328154,71244.0,71243.0,4.02e-05]
[1717620047216,6.45329965,71244.0,71243.0,4.02e-05]
[1717620047436,6.32787465,71244.0,71243.0,4.02e-05]
[1717620048057,6.32791664,71244.0,71243.0,4.02e-05]
[1717620048455,6.47303451,71244.0,71243.0,4.02e-05]
[1717620050224,6.55288617,71244.0,71243.0,4.02e-05]
[1717620051588,6.55293052,71244.0,71243.0,4.02e-05]
[1717620052230,1.33827155,71240.0,71239.0,0.009493]
[1717620052440,2.27555523,71240.0,71239.0,0.009493]
[1717620052637,2.71084651,71240.0,71239.0,0.009493]
[1717620053041,2.40099469,71240.0,71239.0,0.009493]
[1717620053558,2.41499469,71240.0,71239.0,0.009493]
[1717620053788,2.72484641,71240.0,71239.0,0.009493]
[1717620054617,2.73884641,71240.0,71239.0,0.009493]
[1717620056041,2.88396428,71240.0,71239.0,0.009493]
[1717620056829,3.16470528,71240.0,71239.0,0.009493]
[1717620057247,3.24493479,71240.0,71239.0,0.009493]
[1717620057620,2.49872127,71240.0,71239.0,0.009493]
[1717620057797,3.24494444,71240.0,71239.0,0.009493]
[1717620058610,3.25366499,71240.0,71239.0,0.009493]
[1717620058812,3.17343548,71240.0,71239.0,0.009493]
[1717620059222,3.25373328,71240.0,71239.0,0.009493]
[1717620064296,3.17343548,71240.0,71239.0,0.009493]
[1717620067418,3.08625245,71240.0,71239.0,0.009493]
[1717620067854,3.16787615,71240.0,71239.0,0.009493]
[1717620068092,3.02674131,71240.0,71239.0,0.009493]
[1717620068736,3.02674561,71240.0,71239.0,0.009493]
[1717620073261,3.26747018,71240.0,71239.0,0.009493]
[1717620073478,3.41258805,71240.0,71239.0,0.009493]
[1717620074106,3.39858805,71240.0,71239.0,0.009493]
[1717620074320,3.41258946,71240.0,71239.0,0.009493]
[1717620074958,3.39858946,71240.0,71239.0,0.009493]
[1717620076050,3.41258946,71240.0,71239.0,0.009493]
[1717620078261,3.41258944,71240.0,71239.0,0.009493]
[1717620079109,3.25168944,71240.0,71239.0,0.009493]
[1717620084179,3.16994117,71240.0,71239.0,0.009493]
[1717620084397,3.25198375,71240.0,71239.0,0.009493]
[1717620085169,3.17228375,71240.0,71239.0,0.009493]
[1717620085394,3.26002377,71240.0,71239.0,0.009493]
[1717620087156,3.25980931,71240.0,71239.0,0.009493]
[1717620088543,3.11469144,71240.0,71239.0,0.00554363]
[1717620088819,3.04679144,71240.0,71239.0,0.00554363]
[1717620089052,3.11469144,71240.0,71239.0,0.00554363]
[1717620091204,3.11469132,71240.0,71239.0,0.00554363]
[1717620092617,2.71469132,71240.0,71239.0,0.00554363]
[1717620092831,3.11469132,71240.0,71239.0,0.00554363]
[1717620097773,1.13585155,71237.0,71236.0,0.079]
[1717620097986,2.79487904,71237.0,71236.0,0.079]
[1717620100138,2.80887904,71237.0,71236.0,0.079]
[1717620100684,2.82287904,71237.0,71236.0,0.079]
[1717620102589,0.70771955,71235.0,71234.0,0.0808]
[1717620102795,2.01240963,71235.0,71234.0,0.0808]
[1717620102998,2.11974266,71235.0,71234.0,0.0808]
[1717620103808,2.13374266,71235.0,71234.0,0.0808]
[1717620104037,2.14774266,71235.0,71234.0,0.0808]
[1717620105612,2.14774266,71235.0,71234.0,0.081746]
[1717620106228,2.04040963,71235.0,71234.0,0.081746]
[1717620108049,2.23040963,71235.0,71234.0,0.081746]
[1717620108260,2.23041215,71235.0,71234.0,0.081746]
[1717620108853,1.48418089,71235.0,71234.0,0.081746]
[1717620109096,2.23041214,71235.0,71234.0,0.081746]
[1717620109532,2.23041214,71235.0,71234.0,0.000946]
[1717620110385,2.23041215,71235.0,71234.0,0.000946]
[1717620111030,2.29831215,71235.0,71234.0,0.000946]
[1717620115949,2.31509826,71235.0,71234.0,0.000946]
[1717620117339,2.59585826,71235.0,71234.0,0.000946]
[1717620121029,2.59585826,71235.0,71213.0,0.0811]
[1717620121030,0.00581955,71221.0,71213.0,0.0811]
[1717620121255,0.208321,71214.0,71213.0,0.2443]
[1717620121464,0.64225069,71214.0,71213.0,0.2443]
[1717620121884,0.74687167,71214.0,71213.0,0.2443]
[1717620122124,0.41555067,71214.0,71213.0,0.43945483]
[1717620122346,0.18625646,71214.0,71213.0,0.2864236]
[1717620122559,0.28483993,71214.0,71213.0,0.43945483]
[1717620123683,0.29083993,71214.0,71213.0,0.43945483]
[1717620123895,0.29083993,71214.0,71213.0,0.4496236]
[1717620124073,0.29783993,71214.0,71213.0,0.43945483]
[1717620124369,0.30883993,71214.0,71213.0,0.2443]
[1717620124586,0.15741893,71214.0,71213.0,0.43945483]
[1717620124781,0.15724998,71214.0,71213.0,0.43945483]
[1717620124997,0.16924998,71214.0,71213.0,0.43945483]
[1717620125208,0.16924998,71214.0,71213.0,0.4496236]
[1717620126259,0.16924998,71214.0,71213.0,0.43945483]
[1717620126518,0.16924998,71214.0,71213.0,0.4496236]
[1717620129140,0.16924998,71214.0,71213.0,0.4446236]
[1717620132223,0.16924998,71214.0,71213.0,0.2393]
[1717620138789,0.16924998,71214.0,71213.0,0.4446236]
[1717620139000,0.16924998,71214.0,71213.0,0.2393]
[1717620141533,0.23714998,71214.0,71213.0,0.2393]